bitfinex/quotes_ETHUSD_20220201
["timestamp","ask_amount","ask_price","bid_price","bid_amount"]
[1643731624196,0.34604618,2780.5,2779.6,0.433]
[1643731624399,0.34604618,2780.5,2779.6,0.6871431]
[1643731624595,0.34604618,2780.5,2779.6,0.95072327]
[1643731625196,0.34604618,2780.5,2779.6,0.733]
[1643731625396,0.34604618,2780.5,2779.7,0.12473]
[1643731625601,0.35417154,2780.2,2779.8,0.55773]
[1643731625794,0.35417154,2780.2,2779.9,0.433]
[1643731625795,1.02463155,2780.2,2779.9,0.433]
[1643731626196,1.02463155,2780.2,2779.9,0.733]
[1643731626650,0.35417154,2780.2,2779.9,0.733]
[1643731627546,5.65834484,2780.0,2779.9,0.733]
[1643731627745,0.34604618,2780.5,2779.9,0.733]
[1643731628746,0.36795918,2780.2,2779.9,0.733]
[1643731629151,0.34604618,2780.5,2780.1,0.12473]
[1643731629353,1.0987474,2781.4,2780.2,0.433]
[1643731629554,1.0987474,2781.4,2780.3,2.0]
[1643731629748,1.0987474,2781.4,2780.5,0.04316637]
[1643731629952,0.0232326,2781.0,2780.6,0.55773]
[1643731630385,0.0232326,2781.0,2780.6,0.85773]
[1643731630589,0.0232326,2781.0,2780.6,0.75773]
[1643731630792,0.68300644,2781.4,2780.6,1.05773]
[1643731630996,0.68300644,2781.4,2780.9,0.0124691]
[1643731631187,0.42728823,2781.4,2781.0,0.55773]
[1643731631389,0.42728823,2781.4,2781.0,3.92633121]
[1643731631593,0.42728823,2781.4,2781.1,0.09299327]
[1643731631786,0.42728823,2781.4,2781.3,0.12473]
[1643731631988,0.42728823,2781.4,2781.3,0.55773]
[1643731631989,0.37728823,2781.4,2781.3,0.55773]
[1643731632187,0.37728823,2781.4,2781.3,0.433]
[1643731632393,0.37728823,2781.4,2781.3,0.55773]
[1643731632589,0.37728823,2781.4,2781.3,0.65072327]
[1643731632788,3.9129,2782.5,2781.3,0.65072327]
[1643731632989,3.9129,2782.5,2781.3,0.55773]
[1643731633188,0.37239166,2782.4,2781.3,0.55773]
[1643731633393,1.26398788,2782.4,2781.3,0.55773]
[1643731633853,1.26398788,2782.4,2781.3,0.85773]
[1643731634051,1.26398788,2782.4,2781.3,1.15773]
[1643731634247,1.26398788,2782.4,2781.5,0.43141484]
[1643731634448,1.26398788,2782.4,2781.6,0.433]
[1643731634649,0.92897467,2781.9,2781.0,0.1381]
[1643731634852,0.92897467,2781.9,2780.9,0.2582]
[1643731634853,0.92897467,2781.9,2781.1,0.433]
[1643731635049,0.92897467,2781.9,2781.2,0.433]
[1643731635249,0.92897467,2781.9,2781.3,0.433]
[1643731635448,0.92897467,2781.9,2781.2,0.433]
[1643731635649,0.68135426,2781.4,2781.2,0.433]
[1643731636053,0.68010318,2781.4,2781.2,0.433]
[1643731636854,0.007,2781.9,2781.2,0.433]
[1643731637055,0.007,2781.9,2781.2,0.45337674]
[1643731637261,0.007,2781.9,2781.2,0.433]
[1643731637893,0.4468188,2781.7,2781.2,0.433]
[1643731638093,0.4468188,2781.7,2781.2,0.733]
[1643731639100,0.69460564,2781.1,2780.9,0.2582]
[1643731639296,0.69460564,2781.1,2780.9,0.5582]
[1643731639498,0.4468188,2781.7,2780.9,0.2582]
[1643731639698,0.4468188,2781.7,2781.0,0.3]
[1643731639999,0.007,2781.9,2780.9,0.2582]
[1643731640500,0.68063959,2781.1,2780.9,0.2582]
[1643731641202,1.09125749,2781.1,2780.9,0.2582]
[1643731641444,0.4106179,2781.1,2780.5,1.27630707]
[1643731641645,0.40151939,2781.1,2780.5,1.27630707]
[1643731642444,4.49359635,2780.6,2780.5,1.27630707]
[1643731642647,4.1,2780.6,2780.5,0.733]
[1643731642846,3.938922,2780.6,2780.5,0.433]
[1643731643047,0.01229584,2781.5,2780.5,0.433]
[1643731643645,0.73137623,2780.8,2780.5,0.433]
[1643731643856,0.35469575,2780.7,2780.5,0.433]
[1643731644049,0.35469575,2780.7,2780.0,0.09299327]
[1643731644050,0.35469575,2780.7,2779.6,0.79029125]
[1643731644247,0.35469575,2780.7,2779.6,1.39029125]
[1643731644446,0.35469575,2780.7,2779.6,0.79029125]
[1643731645206,0.42617563,2779.7,2779.6,0.79029125]
[1643731645404,2.0,2780.7,2779.6,0.79029125]
[1643731645605,0.7434471,2780.8,2779.6,1.48328452]
[1643731646304,0.32157568,2780.0,2779.6,1.48328452]
[1643731646515,2.0,2781.1,2779.7,0.0229172]
[1643731646711,5.1385,2781.2,2779.8,0.433]
[1643731646906,5.1385,2781.2,2779.8,1.26997403]
[1643731647104,5.1385,2781.2,2779.9,0.09299327]
[1643731647305,5.1385,2781.2,2780.0,0.433]
[1643731647508,0.3757123,2780.8,2780.2,0.42077801]
[1643731647707,0.3757123,2780.8,2780.3,0.433]
[1643731647907,0.3757123,2780.8,2780.3,0.52602041]
[1643731648106,0.87326013,2781.1,2780.3,0.82602041]
[1643731648308,3.9301,2781.2,2780.4,0.09302041]
[1643731648507,3.9301,2781.2,2780.5,0.433]
[1643731648708,3.9301,2781.2,2780.5,0.733]
[1643731649537,2.71699467,2780.6,2780.5,0.3]
[1643731649743,2.72926105,2780.6,2779.8,0.433]
[1643731650440,0.72301722,2780.4,2779.8,0.433]
[1643731651044,0.72301722,2780.4,2779.8,0.733]
[1643731651645,0.41749097,2779.9,2779.8,0.733]
[1643731652043,0.72301722,2780.4,2779.8,0.733]
[1643731652445,0.72301722,2780.4,2779.8,0.7500132]
[1643731652687,0.72301722,2780.4,2779.8,0.733]
[1643731652891,0.72301722,2780.4,2779.8,1.033]
[1643731653087,0.72301722,2780.4,2779.8,1.12602041]
[1643731653289,0.72301722,2780.4,2779.8,0.82602041]
[1643731653993,0.72301722,2780.4,2779.8,1.12602041]
[1643731654193,0.72301722,2780.4,2779.8,0.82602041]
[1643731654490,0.41777867,2780.0,2779.8,0.82602041]
[1643731654893,0.72301722,2780.4,2779.8,1.12602041]
[1643731655089,0.72301722,2780.4,2779.9,1.5]
[1643731655289,1.21409491,2781.1,2779.9,2.8]
[1643731655492,1.21409491,2781.1,2779.9,3.32602041]
[1643731655690,1.21409491,2781.1,2779.9,2.35301971]
[1643731655889,0.333708,2780.5,2780.0,1.0]
[1643731656090,1.21409491,2781.1,2780.1,0.433]
[1643731656348,1.2016,2781.1,2780.1,0.733]
[1643731656548,1.2016,2781.1,2780.2,0.40953931]
[1643731656751,1.2016,2781.1,2780.3,0.433]
[1643731656948,1.2016,2781.1,2780.3,0.52602041]
[1643731657148,0.35028057,2780.7,2780.3,0.82602041]
[1643731657350,0.35028057,2780.7,2780.3,0.733]
[1643731657748,0.35028057,2780.7,2780.3,0.82602041]
[1643731659257,0.35028057,2780.7,2780.3,0.733]
[1643731659857,0.35028057,2780.7,2779.9,1.5]
[1643731660492,0.40564093,2780.2,2779.9,1.5]
[1643731660689,0.012003,2781.0,2780.0,0.09302041]
[1643731660890,1.2016,2781.1,2780.0,0.09302041]
[1643731661494,0.89760573,2780.7,2780.0,0.09302041]
[1643731661795,0.35855023,2780.8,2780.1,0.733]
[1643731662189,0.35855023,2780.8,2780.2,0.3]
[1643731663191,0.58388866,2780.6,2780.2,0.3]
[1643731663392,0.35855023,2780.8,2780.2,0.3]
[1643731663846,0.35855023,2780.8,2780.1,0.82602041]
[1643731664142,0.35855023,2780.8,2780.1,0.39302041]
[1643731664345,0.35855023,2780.8,2780.1,0.09302041]
[1643731664542,0.71249513,2780.6,2780.1,0.09302041]
[1643731665147,0.71249513,2780.6,2779.9,1.5]
[1643731666344,0.71249513,2780.6,2779.9,2.1]
[1643731666547,0.35855023,2780.8,2779.9,2.1]
[1643731666748,0.35855023,2780.8,2780.2,0.3]
[1643731667146,0.35855023,2780.8,2780.1,0.433]
[1643731667348,0.35736868,2780.8,2780.1,0.433]
[1643731667590,0.35736868,2780.8,2780.1,0.733]
[1643731667794,0.74467663,2780.9,2780.2,0.69715443]
[1643731667996,1.214552,2781.1,2780.2,0.69715443]
[1643731667997,1.2016,2781.1,2780.3,0.01813676]
[1643731668193,1.2016,2781.1,2780.3,0.733]
[1643731668393,1.2016,2781.1,2780.3,1.033]
[1643731668793,1.51692041,2781.0,2780.3,1.033]
[1643731668995,2.24565068,2781.0,2780.3,1.033]
[1643731669195,0.72873027,2781.0,2780.3,1.033]
[1643731669597,1.2016,2781.1,2780.3,1.033]
[1643731669796,1.51689068,2781.0,2780.3,1.033]
[1643731669994,1.51689068,2781.0,2780.3,1.9318673]
[1643731670197,1.51689068,2781.0,2780.4,1.01373484]
[1643731670398,1.2016,2781.1,2780.5,0.433]
[1643731670609,8.14640424,2782.4,2780.6,5.3151551]
[1643731670807,8.14640424,2782.4,2781.1,0.03016173]
[1643731670808,23.5048404,2782.3,2781.1,0.03016173]
[1643731671004,23.5048404,2782.3,2781.0,0.01281083]
[1643731671005,0.42369579,2781.7,2781.5,1.5]
[1643731671445,0.42369579,2781.7,2781.5,2.1]
[1643731671849,0.42369579,2781.7,2781.5,3.1]
[1643731672044,0.42369579,2781.7,2781.5,2.1]
[1643731672250,4.22369579,2781.7,2781.6,1.0]
[1643731672447,5.74023526,2781.7,2781.5,3.1]
[1643731672652,4.22369579,2781.7,2781.5,1.8]
[1643731673450,6.16661225,2781.6,2781.5,1.8]
[1643731674051,6.16661225,2781.6,2781.5,2.318]
[1643731674252,1.51661225,2781.6,2781.5,2.618]
[1643731674449,0.42369579,2781.7,2781.5,2.618]
[1643731674648,14.7216,2782.3,2781.5,2.618]
[1643731674649,14.7216,2782.3,2781.6,0.95]
[1643731674857,1.46646477,2782.2,2781.7,0.518]
[1643731675304,0.89850272,2782.0,2781.7,0.818]
[1643731675502,0.89850272,2782.0,2781.7,1.118]
[1643731675704,0.89850272,2782.0,2781.7,0.818]
[1643731675901,3.744,2782.3,2781.7,1.118]
[1643731676304,3.41628644,2781.8,2781.7,1.118]
[1643731676909,3.41628644,2781.8,2781.7,0.518]
[1643731677111,7.06628644,2781.8,2781.7,0.518]
[1643731677516,3.05,2781.8,2781.7,0.518]
[1643731678410,3.48002696,2781.8,2781.7,0.818]
[1643731678611,3.05,2781.8,2781.7,0.818]
[1643731678837,3.05,2781.8,2781.7,1.118]
[1643731679043,3.744,2782.3,2781.8,0.01703075]
[1643731679243,2.317,2782.7,2781.9,0.6561]
[1643731679446,0.431,2783.0,2782.0,2.03139988]
[1643731679643,4.57824041,2782.9,2782.4,0.35487777]
[1643731679843,0.82689318,2783.0,2782.5,0.518]
[1643731680144,0.27789318,2783.0,2782.6,0.518]
[1643731680342,0.27789318,2783.0,2782.3,1.0]
[1643731680343,0.27789318,2783.0,2782.4,0.518]
[1643731680742,2.94106997,2782.5,2782.4,0.518]
[1643731681042,3.09620424,2783.5,2782.4,0.518]
[1643731681243,0.83707944,2783.2,2782.4,0.518]
[1643731681646,2.4198,2783.5,2782.4,0.518]
[1643731681647,3.09620424,2783.5,2782.8,1.5]
[1643731681851,0.99999999,2783.2,2782.9,0.518]
[1643731682048,5.6,2783.0,2782.0,6.474]
[1643731682252,5.61234904,2783.0,2782.1,0.518]
[1643731682711,0.7224709,2782.3,2782.1,0.518]
[1643731682906,5.61234904,2783.0,2782.1,0.518]
[1643731683104,0.40453967,2782.2,2782.1,0.518]
[1643731683302,7.6,2783.0,2782.1,0.518]
[1643731683504,7.59874961,2783.0,2782.1,0.518]
[1643731683709,7.59874961,2783.0,2781.5,1.7967809]
[1643731683710,0.99999999,2782.7,2781.5,1.7967809]
[1643731684008,7.59874961,2783.0,2781.5,1.7967809]
[1643731684009,0.003888,2782.8,2781.5,1.7967809]
[1643731684209,2.0,2782.8,2781.5,1.7967809]
[1643731684407,0.38854576,2782.7,2782.0,0.36236747]
[1643731684612,0.69613713,2782.8,2782.0,0.36236747]
[1643731684613,0.69613713,2782.8,2782.0,1.21181747]
[1643731684907,0.69613713,2782.8,2781.9,0.89836]
[1643731684908,0.69613713,2782.8,2782.1,0.518]
[1643731685108,0.69613713,2782.8,2781.9,0.89836]
[1643731685313,0.69613713,2782.8,2782.2,0.518]
[1643731686009,2.79571845,2782.3,2782.2,0.518]
[1643731686448,2.4,2782.3,2782.2,0.518]
[1643731687144,4.75,2782.3,2782.2,0.518]
[1643731687348,4.7,2782.3,2781.7,1.79669]
[1643731687554,4.7,2782.3,2781.4,0.768]
[1643731687746,4.7,2782.3,2781.4,0.25]
[1643731687951,4.7,2782.3,2781.3,1.42482902]
[1643731688347,0.44673192,2782.2,2781.5,0.40382]
[1643731688549,4.7,2782.3,2781.5,0.40382]
[1643731688748,8.672554,2782.3,2781.6,2.0]
[1643731689049,8.672554,2782.3,2781.8,0.89843]
[1643731689247,9.44214305,2782.3,2781.8,0.89843]
[1643731689446,9.44214305,2782.3,2781.4,1.7968761]
[1643731690326,9.44214305,2782.3,2781.4,2.19939176]
[1643731691631,9.44214305,2782.3,2781.2,0.09302041]
[1643731691632,0.43841615,2782.1,2781.2,0.09302041]
[1643731691836,0.43841615,2782.1,2780.8,0.09302041]
[1643731691837,0.45114286,2782.1,2780.8,0.09302041]
[1643731692031,0.45114286,2782.1,2780.4,4.32157291]
[1643731692032,0.20277,2781.9,2780.4,4.32157291]
[1643731692233,0.00965142,2781.8,2780.4,4.32157291]
[1643731692431,0.00965142,2781.8,2780.4,2.32157291]
[1643731692632,0.39885384,2781.6,2780.7,0.34302041]
[1643731692834,0.92062014,2781.7,2780.7,0.09302041]
[1643731693231,0.92062014,2781.7,2780.9,0.89872]
[1643731693434,1.92062013,2781.7,2780.9,0.89872]
[1643731693633,0.91385229,2781.1,2780.4,1.7975525]
[1643731693843,0.39370443,2781.0,2780.4,0.43947887]
[1643731694044,0.39370443,2781.0,2780.6,1.5]
[1643731694251,0.91385229,2781.1,2780.6,1.5]
[1643731695844,0.41737618,2781.0,2780.6,1.5]
[1643731696445,0.91385229,2781.1,2780.6,1.5]
[1643731696647,2.29549996,2781.6,2780.6,1.5]
[1643731696851,1.1573,2781.6,2780.6,1.50697302]
[1643731697050,6.322554,2781.0,2780.7,0.09945238]
[1643731697249,6.322554,2781.0,2780.8,0.431]
[1643731697451,6.322554,2781.0,2780.8,0.52402041]
[1643731697731,6.32146418,2781.0,2780.9,0.5081712]
[1643731697935,6.32146418,2781.0,2780.9,0.4581712]
[1643731698153,6.32146418,2781.0,2780.9,0.8891712]
[1643731698531,0.92967228,2781.0,2780.9,1.7879207]
[1643731699434,14.6524,2783.0,2780.9,4.16746011]
[1643731699634,14.6524,2783.0,2780.9,5.96414061]
[1643731699635,10.5366,2782.9,2780.9,5.96414061]
[1643731699836,0.31878118,2782.5,2781.0,0.09302041]
[1643731700031,0.31878118,2782.5,2781.1,0.431]
[1643731700231,0.75665568,2782.4,2781.2,2.33568904]
[1643731700431,0.75665568,2782.4,2781.3,0.431]
[1643731700837,0.31878118,2782.5,2781.8,0.41622236]
[1643731701132,2.42601608,2782.8,2781.8,0.84722236]
[1643731701544,10.67479997,2782.9,2781.8,0.84722236]
[1643731701944,0.6931582,2782.5,2781.8,0.84722236]
[1643731702144,0.35273561,2782.6,2781.8,0.84722236]
[1643731702343,10.67479997,2782.9,2781.8,0.84722236]
[1643731702945,2.0,2782.8,2781.8,0.84722236]
[1643731703350,0.75809322,2782.6,2781.8,0.84722236]
[1643731703747,2.75809322,2782.6,2781.8,0.431]
[1643731704246,0.01251665,2782.7,2781.8,0.431]
[1643731704447,0.01251665,2782.7,2781.8,1.3295]
[1643731704646,0.01251665,2782.7,2781.8,0.431]
[1643731705098,1.51617928,2782.6,2781.8,0.431]
[1643731705500,0.3682422,2782.4,2781.8,0.431]
[1643731705906,0.85006761,2782.5,2781.8,0.431]
[1643731707116,0.4207052,2782.4,2781.8,0.431]
[1643731708309,2.46645158,2782.4,2781.8,0.431]
[1643731708517,2.46645158,2782.4,2781.3,2.32669399]
[1643731708518,1.51633764,2782.3,2781.3,2.32669399]
[1643731708709,2.0,2782.2,2781.3,0.52956399]
[1643731708960,0.86211065,2782.5,2781.3,0.52956399]
[1643731708961,0.01204304,2782.5,2781.3,0.03786399]
[1643731709161,1.51640452,2782.4,2781.4,0.09302041]
[1643731709465,2.0,2782.8,2781.5,0.8986013]
[1643731709663,1.51626995,2782.7,2781.5,0.8986013]
[1643731709862,1.52863745,2782.7,2781.4,1.79715]
[1643731710065,0.43118579,2782.0,2781.4,1.79715]
[1643731710567,1.2344,2782.5,2781.5,0.8986021]
[1643731710764,1.51628215,2782.4,2781.5,0.8986021]
[1643731710965,1.2344,2782.5,2781.6,0.89857]
[1643731711466,1.57509621,2782.5,2781.8,0.3472415]
[1643731711665,1.57509621,2782.5,2781.6,0.89857]
[1643731711865,1.2344,2782.5,2781.6,0.89857]
[1643731712066,1.2344,2782.5,2781.6,1.32957]
[1643731712266,1.2344,2782.5,2781.6,4.0250366]
[1643731712894,1.2344,2782.5,2781.8,1.79686]
[1643731713096,1.2344,2782.5,2782.0,0.38303304]
[1643731713293,1.2344,2782.5,2781.9,0.8984258]
[1643731713499,0.43267534,2782.7,2781.9,0.8984258]
[1643731713702,9.48899997,2782.9,2781.9,0.8984258]
[1643731713903,9.48899997,2782.9,2782.1,0.89842]
[1643731713904,1.51608863,2782.8,2782.1,0.89842]
[1643731714910,0.42615119,2782.7,2782.1,1.25150665]
[1643731715302,5.65909997,2782.9,2782.1,1.25150665]
[1643731715502,1.51608812,2782.8,2782.1,1.25150665]
[1643731715907,1.51608812,2782.8,2782.1,1.85150665]
[1643731716103,1.51608812,2782.8,2782.1,1.49842]
[1643731716352,1.51608812,2782.8,2782.1,1.19842]
[1643731716773,7.83864212,2782.8,2782.1,1.49842]
[1643731716960,1.51608812,2782.7,2782.1,1.49842]
[1643731717157,1.88966959,2782.7,2782.1,1.82948187]
[1643731717357,0.37358147,2782.7,2782.1,1.19842]
[1643731717557,6.322554,2782.8,2782.1,1.49842]
[1643731717960,6.322554,2782.8,2782.2,2.6949723]
[1643731718160,6.322554,2782.8,2782.4,0.89827]
[1643731718359,6.322554,2782.8,2782.4,1.62927]
[1643731718557,0.39858569,2782.6,2782.5,1.5]
[1643731718759,6.322554,2782.8,2782.5,2.8]
[1643731719162,6.322554,2782.8,2782.6,0.431]
[1643731719359,6.322554,2782.8,2782.6,2.22736]
[1643731719559,6.322554,2782.8,2782.6,2.52736]
[1643731719560,6.29828038,2782.8,2782.6,2.52736]
[1643731719761,6.29828038,2782.8,2782.6,3.91994085]
[1643731719961,6.29654721,2782.8,2782.6,3.91994085]
[1643731720204,1.18931214,2783.8,2782.6,3.91994085]
[1643731720205,0.67640424,2784.0,2782.7,6.3]
[1643731720406,2.1987222,2784.4,2782.7,6.3]
[1643731720407,2.1987222,2784.4,2783.0,1.7958294]
[1643731720408,1.51556047,2783.9,2783.0,1.7958294]
[1643731720606,2.87512644,2784.4,2783.3,0.01231761]
[1643731720607,2.1987222,2784.4,2783.3,0.01231761]
[1643731720802,2.1987222,2784.4,2783.4,4.02978061]
[1643731720803,1.51540641,2784.3,2783.4,4.02978061]
[1643731721003,1.51540641,2784.3,2783.4,5.00952]
[1643731721203,0.32965699,2784.0,2783.5,1.0]
[1643731721403,0.32965699,2784.0,2783.6,0.431]
[1643731721606,0.32965699,2784.0,2783.6,0.731]
[1643731721815,0.32965699,2784.0,2783.6,1.031]
[1643731722008,2.1987222,2784.4,2783.8,2.6934096]
[1643731722211,2.1987222,2784.4,2783.9,2.031]
[1643731722808,2.1987222,2784.4,2783.9,4.76163454]
[1643731723009,2.1987222,2784.4,2783.9,5.62149]
[1643731723408,2.1987222,2784.4,2783.9,5.71431552]
[1643731723608,2.1987222,2784.4,2783.9,5.74592727]
[1643731723843,2.1987222,2784.4,2783.9,5.71431552]
[1643731724348,2.1987222,2784.4,2784.2,1.7953851]
[1643731724546,2.1987222,2784.4,2784.3,0.431]
[1643731724743,2.1987222,2784.4,2784.3,0.731]
[1643731724951,2.1987222,2784.4,2784.3,1.731]
[1643731725351,2.1987222,2784.4,2784.3,2.08822457]
[1643731725749,2.1987222,2784.4,2784.3,1.731]
[1643731727456,2.1987222,2784.4,2784.3,2.11160227]
[1643731727706,1.0987474,2784.7,2784.3,3.01447193]
[1643731728301,1.0987474,2784.7,2784.3,3.00909227]
[1643731728903,1.0987474,2784.7,2784.4,2.69232]
[1643731729101,1.0987474,2784.7,2784.4,3.12332]
[1643731729302,1.0987474,2784.7,2784.6,0.89755]
[1643731729507,1.2092,2785.7,2784.7,0.1381]
[1643731729709,1.2092,2785.7,2784.9,2.69189]
[1643731729710,1.00160926,2785.7,2784.9,2.69189]
[1643731729906,1.00160926,2785.7,2785.3,2.17510224]
[1643731730107,3.879,2786.0,2785.3,2.17510224]
[1643731730307,0.06475128,2785.8,2785.4,0.3]
[1643731730505,0.04547387,2785.7,2785.4,0.3]
[1643731730706,0.04547387,2785.7,2785.4,1.3]
[1643731730910,0.04490545,2785.6,2785.4,0.3]
[1643731731106,0.04490545,2785.6,2785.4,3.0946634]
[1643731731340,3.59433703,2785.5,2785.4,3.0946634]
[1643731731544,3.59433703,2785.5,2785.4,2.19734]
[1643731732143,3.59433703,2785.5,2785.4,1.3]
[1643731732546,6.74433703,2785.5,2785.4,1.3]
[1643731732747,6.74433703,2785.5,2785.3,2.19741]
[1643731732947,6.74433703,2785.5,2785.3,1.19741]
[1643731733147,6.4937686,2785.4,2785.3,2.19741]
[1643731734145,0.0437686,2785.4,2785.3,2.19741]
[1643731734346,0.0437686,2785.4,2785.3,2.49741]
[1643731734546,4.6937686,2785.4,2785.3,2.19741]
[1643731734746,4.6926348,2785.4,2785.3,2.19741]
[1643731735206,0.0426348,2785.4,2785.3,2.49741]
[1643731735402,0.0426348,2785.4,2785.3,2.19741]
[1643731735608,2.8926348,2785.4,2785.3,2.19741]
[1643731736508,2.7350348,2785.4,2785.3,2.19741]
[1643731736709,2.7350348,2785.4,2785.3,1.3]
[1643731737110,2.7350348,2785.4,2785.2,3.0947257]
[1643731737311,2.7350348,2785.4,2785.3,1.0]
[1643731737514,6.6850348,2785.4,2785.3,1.0]
[1643731737710,6.6850348,2785.4,2785.2,0.3]
[1643731738009,6.6850348,2785.4,2785.1,1.3]
[1643731738212,6.6850348,2785.4,2785.1,1.0]
[1643731738615,2.7350348,2785.4,2785.2,0.8975013]
[1643731738864,0.06475128,2785.8,2785.2,1.7949113]
[1643731739060,0.06475128,2785.8,2785.4,1.79463]
[1643731739263,0.06475128,2785.8,2785.4,4.3201285]
[1643731739760,0.06475128,2785.8,2785.5,1.44092768]
[1643731740961,0.06475128,2785.8,2785.5,1.0]
[1643731741162,0.06475128,2785.8,2785.5,1.8973]
[1643731741563,0.06475128,2785.8,2785.5,0.8973]
[1643731741764,0.06475128,2785.8,2785.4,1.19731]
[1643731742799,0.06475128,2785.8,2785.5,0.89731]
[1643731743198,0.06475128,2785.8,2785.5,1.89731]
[1643731743399,0.06475128,2785.8,2785.4,2.19731]
[1643731743599,0.06475128,2785.8,2785.4,1.19731]
[1643731743799,0.06475128,2785.8,2785.4,2.19731]
[1643731744003,0.06475128,2785.8,2785.4,1.19731]
[1643731744199,0.06475128,2785.8,2785.4,2.19731]
[1643731745104,0.06475128,2785.8,2785.4,1.19731]
[1643731745308,0.06475128,2785.8,2785.1,1.794794]
[1643731745901,0.06904606,2785.8,2785.1,1.794794]
[1643731746104,0.37101282,2785.3,2785.1,1.794794]
[1643731746349,0.37101282,2785.3,2784.9,1.79497]
[1643731746350,0.37101282,2785.3,2784.8,0.8975849]
[1643731746550,0.37101282,2785.3,2784.6,1.79515]
[1643731747149,0.69179589,2785.5,2784.6,1.79515]
[1643731748150,0.80662607,2785.0,2784.6,1.79515]
[1643731748352,0.80662607,2785.0,2784.2,3.5903963]
[1643731748353,0.80662607,2785.0,2784.3,0.89776]
[1643731748754,0.80662607,2785.0,2784.1,2.04798061]
[1643731748953,0.81603119,2785.0,2784.1,2.04798061]
[1643731749355,4.02937316,2784.2,2784.1,2.04798061]
[1643731749958,3.65,2784.2,2784.1,2.04798061]
[1643731751002,3.65,2784.2,2784.1,2.34798061]
[1643731755254,1.1519,2784.9,2784.2,0.01499525]
[1643731755457,0.44873287,2784.6,2784.2,2.26562923]
[1643731755655,1.1519,2784.9,2784.2,0.01499525]
[1643731755859,1.1519,2784.9,2784.3,0.89774]
[1643731756056,0.20277,2785.1,2784.3,0.89774]
[1643731756355,0.89547988,2784.7,2784.3,0.89774]
[1643731756562,0.89547988,2784.7,2784.3,4e-05]
[1643731756563,0.01269136,2784.6,2784.3,4e-05]
[1643731757605,0.15277,2784.4,2784.3,4e-05]
[1643731757809,0.20206,2784.4,2784.3,4e-05]
[1643731758203,0.20206,2784.4,2783.2,4.046]
[1643731758204,6.7,2784.3,2783.2,2.046]
[1643731758603,6.70423902,2784.3,2783.2,2.046]
[1643731758805,7.69999999,2784.3,2783.2,2.046]
[1643731759207,0.34946779,2783.7,2783.2,2.046]
[1643731759407,0.74731915,2784.0,2783.2,1.796]
[1643731760609,4.20211747,2783.5,2783.2,1.796]
[1643731760810,4.20211747,2783.5,2782.9,0.517]
[1643731760811,0.26561007,2783.4,2782.9,0.517]
[1643731761017,0.26561007,2783.4,2782.6,0.517]
[1643731761018,0.2788572,2783.4,2782.6,0.517]
[1643731761211,0.2788572,2783.4,2782.4,0.55154509]
[1643731761462,2.2788572,2783.4,2782.4,0.55154509]
[1643731761660,0.36471658,2782.6,2782.4,0.55154509]
[1643731761855,0.20206,2783.0,2782.4,0.55154509]
[1643731762855,6.73951007,2783.4,2782.5,0.41440796]
[1643731763062,0.20206,2784.3,2782.6,0.517]
[1643731763259,0.20206,2784.3,2783.1,0.01214579]
[1643731763260,11.298,2784.3,2783.1,0.01214579]
[1643731763457,11.298,2784.3,2783.2,0.517]
[1643731763860,11.298,2784.3,2783.5,0.34706108]
[1643731764059,11.298,2784.3,2783.8,0.89785]
[1643731764060,5.1585,2784.3,2783.8,0.89785]
[1643731764261,5.2463,2784.6,2783.8,0.89785]
[1643731764262,5.2463,2784.6,2783.9,0.517]
[1643731764858,5.2463,2784.6,2783.9,0.817]
[1643731765101,0.35987864,2784.5,2783.9,0.817]
[1643731766312,0.78530015,2784.4,2783.9,0.517]
[1643731766711,0.78962647,2784.4,2783.4,0.517]
[1643731766911,2.10603588,2784.3,2783.4,0.517]
[1643731767113,0.345158,2783.8,2783.4,0.517]
[1643731767311,0.345158,2783.8,2783.3,0.89807]
[1643731767711,0.345158,2783.8,2783.0,3.21074]
[1643731768014,2.04189944,2783.7,2783.0,0.517]
[1643731768213,0.345158,2783.8,2783.0,0.517]
[1643731768512,0.38189,2784.2,2783.0,0.517]
[1643731768513,0.93797799,2783.7,2783.0,0.517]
[1643731768711,7.59145919,2784.1,2783.0,0.817]
[1643731768958,5.407,2784.1,2783.0,0.817]
[1643731769247,7.49196732,2784.1,2783.0,0.817]
[1643731769450,7.49196732,2784.1,2783.0,0.517]
[1643731769953,7.49986923,2784.1,2783.0,0.517]
[1643731770153,5.41490191,2784.1,2783.0,0.517]
[1643731770353,5.407,2784.1,2783.0,0.517]
[1643731770553,0.01231024,2783.8,2783.0,0.517]
[1643731770757,0.20206,2783.7,2783.0,0.517]
[1643731771154,0.44637506,2783.1,2783.0,0.517]
[1643731771356,2.6,2783.1,2783.0,0.517]
[1643731771559,2.6,2783.1,2783.0,0.817]
[1643731771755,2.6,2783.1,2783.0,0.517]
[1643731772255,1.41386,2783.7,2783.0,0.517]
[1643731772697,1.2118,2783.7,2783.0,0.517]
[1643731773097,17.6762,2784.0,2783.0,2.7265723]
[1643731773098,10.0608,2784.0,2783.0,2.7265723]
[1643731773301,10.0608,2784.0,2783.1,1.0]
[1643731773499,3.97363881,2784.0,2783.4,0.37190197]
[1643731773698,0.36483881,2784.0,2783.5,0.517]
[1643731773898,0.36483881,2784.0,2783.6,0.517]
[1643731774104,0.20206,2784.4,2783.7,0.517]
[1643731774301,1.1389,2784.6,2783.7,0.517]
[1643731774302,4.937,2784.6,2783.8,2.25537525]
[1643731774501,4.937,2784.6,2783.7,0.517]
[1643731774901,4.937,2784.6,2783.7,0.817]
[1643731775101,0.39510726,2784.0,2783.7,0.817]
[1643731775708,0.87155977,2784.5,2783.7,0.817]
[1643731776108,0.87155977,2784.5,2783.7,1.71495]
[1643731776344,1.07361977,2784.5,2783.7,1.71495]
[1643731776555,1.0774082,2784.5,2783.7,0.817]
[1643731776752,1.07361977,2784.5,2783.7,0.817]
[1643731777350,1.07361977,2784.5,2783.4,1.0]